Cogmind - Beta 12 @@@ ROGUE MODE // 2023.12.14 @ 20:54:28 Player: Gobbopathe Result: Destroyed by D-53 Grenadier with Mini Grenade Launcher Performance ------------- Evolutions (1) 500 Regions Visited (3) 600 Robots Destroyed (22) 110 Value Destroyed (451) 451 Prototype IDs (3) 60 Alien Tech Used (0) 0 Bonus (2) 2 TOTAL SCORE: 1723 Bonus ------- High Alert Combat Kills 2 Cogmind --------- Core Integrity 0/400 Matter 300/300 Energy 99/100 System Corruption 0% Temperature Cool (0) Movement Rolling (115) Ox1 Location -9/Mines Parts ------- > --- POWER (1) -------- (None) > --- PROPULSION (2) --- Compact Wheel > --- UTILITY (4) ------ Large Storage Unit Improved Targeting Computer > --- WEAPON (2) ------- Mini Grenade Launcher > --- INVENTORY (15) --- Light Nuclear Core Armored Wheel Rocket Launcher Mini Grenade Launcher Peak State ------------ > --- POWER ------------ Improved Ion Engine > --- PROPULSION ------- Armored Wheel Armored Wheel > --- UTILITY ---------- Improved Heat Sink Large Storage Unit Hacking Suite > --- WEAPON ----------- Improved EM Shotgun Medium Laser > --- INVENTORY -------- Light Nuclear Core Compact Wheel Armored Wheel Armored Wheel Assault Rifle Grenade Launcher [Rating: 18] Favorites ----------- Power Ion Engine Engine Ion Engine Propulsion Armored Wheel Wheel Armored Wheel Utility Large Storage Unit Device Improved Heat Sink Storage Large Storage Unit Processor Improved Targeting Computer Hackware Hacking Suite Weapon Assault Rifle Energy Gun EM Pulse Gun Ballistic Gun Assault Rifle Launcher Mini Grenade Launcher Build | -11 -10 -9 -9 ------- Run | Jun Mat Mat Min Slots Evolved 2 | . . 2 . Power . | . . . . Propulsion . | . . . . Utility 2 | . . 2 . Weapon . | . . . . Parts Attached 20 | 6 5 7 2 Power 2 | 1 . 1 . Engine 2 | 1 . 1 . Core . | . . . . Reactor . | . . . . Propulsion 6 | 2 2 2 . Treads . | . . . . Leg . | . . . . Wheel 6 | 2 2 2 . Hover . | . . . . Flight . | . . . . Utility 6 | 1 3 1 1 Device 2 | . 1 1 . Storage 2 | 1 1 . . Processor 1 | . . . 1 Hackware 1 | . 1 . . Protection . | . . . . Artifact . | . . . . Weapon 6 | 2 . 3 1 Energy Gun 3 | 1 . 2 . Energy Cannon . | . . . . Ballistic Gun 2 | 1 . 1 . Ballistic Cannon . | . . . . Launcher 1 | . . . 1 Special Weapon . | . . . . Impact Weapon . | . . . . Slashing Weapon . | . . . . Piercing Weapon . | . . . . Special Melee Weapon . | . . . . Unidentified Prototypes 1 | . . 1 . Parts Lost 10 | . . 9 1 Power 1 | . . 1 . Propulsion 3 | . . 2 1 Utility 2 | . . 2 . Weapon 4 | . . 4 . Highest Loss Streak 8 | . . 8 1 To Critical Strikes . | . . . . Average Slot Usage (%) 81 | . 95 80 36 Engine 10 | . 14 9 . Wheel 24 | . 28 21 22 Device 4 | . 1 8 . Storage 12 | . 14 11 11 Hackware 8 | . 8 10 . Energy Gun 13 | . 14 17 . Ballistic Gun 7 | . 14 2 . Naked Turns . | . . . . Heaviest Build 33 | 14 29 33 21 Greatest Support 28 | 26 26 28 28 Greatest Overweight (x) 2 | . 1 2 1 Average Overweight (x) . | . . . . Largest Inventory Capacity 15 | 8 15 15 15 Average Capacity 13 | 7 11 15 15 Most Carried 8 | 1 8 8 5 Average Carried 5 | . 5 6 4 Final Capacity 15 | 8 15 15 15 Final Carried 7 | 1 7 4 4 Class Distribution -------------------- 100% | Mutant Dominant Class ---------------- Mutant | -10/Materials Mutant | -9/Materials Mutant | -9/Mines Resources | -11 -10 -9 -9 ----------- Run | Jun Mat Mat Min Matter Collected 438 | 200 149 59 30 Remotely . | . . . . Salvage Created 704 | . 285 419 . Parts 57 | . 25 32 . Haulers Intercepted 2 | . 2 . . Recyclers Shooed . | . . . . Parts Field Recycled . | . . . . Retrieved Matter . | . . . . Parts Self-Destructed . | . . . . Prevented . | . . . . Kills | -11 -10 -9 -9 ------- Run | Jun Mat Mat Min Combat Hostiles Destroyed 17 | . 5 12 . Guns 16 | . 5 11 . AOE 1 | . . 1 . Classes Destroyed 6 | . 4 2 . Hauler 2 | . 2 . . Operator 1 | . 1 . . Watcher 2 | . . 2 . Swarmer 9 | . 3 6 . Grunt 7 | . 2 5 . Sentry 1 | . . 1 . Best Kill Streak 7 | . 4 7 . Combat Bots Only 7 | . 3 7 . Max Kills in Single Turn 2 | . 2 2 . Gunslinging 1 | . 1 1 . Exploded 1 | . . 1 . Melee . | . . . . Uniques/NPCs Destroyed . | . . . . Combat | -11 -10 -9 -9 -------- Run | Jun Mat Mat Min Damage Taken 1193 | . 110 968 115 Core 409 | . . 329 80 Absorbed by Shields . | . . . . Core Remaining (%) 100 | 100 100 . . Volleys Fired 38 | . 13 25 . Largest 2 | . 2 2 . Hottest 95 | . 60 95 . Shots Fired 72 | . 26 46 . Gun 72 | . 26 46 . Cannon . | . . . . Launcher . | . . . . Special . | . . . . Kinetic 21 | . 13 8 . Thermal 22 | . . 22 . Explosive . | . . . . Electromagnetic 29 | . 13 16 . Robot Hit Streak 11 | . 11 6 . Robot Miss Streak 2 | . 2 2 . Penetration Max . | . . . . Secondary Targets 4 | . 2 2 . Max Gunslinging Chain 1 | . 1 1 . Shots Hit Robots 53 | . 16 37 . Core Hits 32 | . 11 21 . Critical Kills 1 | . . 1 . Critical Parts Destroyed . | . . . . Critical Strikes 2 | . 1 1 . Destroy 1 | . . 1 . Corrupt 1 | . 1 . . Melee Attacks . | . . . . Impact . | . . . . Slashing . | . . . . Piercing . | . . . . Sneak Attacks . | . . . . Combat Hostiles . | . . . . Follow-up Attacks . | . . . . Damage Inflicted 745 | . 203 542 . Guns 685 | . 203 482 . Cannons . | . . . . Explosions 60 | . . 60 . Melee . | . . . . Ramming . | . . . . Kinetic 143 | . 72 71 . Thermal 224 | . . 224 . Explosive . | . . . . Electromagnetic 378 | . 131 247 . Impact . | . . . . Slashing . | . . . . Piercing . | . . . . Highest Corruption . | . . . . Average Corruption . | . . . . Corruption Purged . | . . . . Corruption Blocked . | . . . . Overload Shots . | . . . . Overflow Damage . | . . . . Projectiles . | . . . . Explosions . | . . . . Melee . | . . . . Knockbacks . | . . . . Impact . | . . . . Kinetic . | . . . . Secondary . | . . . . Self-Inflicted Damage . | . . . . Shots . | . . . . Rammed . | . . . . Targets Rammed . | . . . . Kicked . | . . . . Crushed . | . . . . Highest Temperature 60 | . 36 60 . Average Temperature 26 | . 28 24 . Received Heat Transfer 417 | . 36 369 12 Siege Activations . | . . . . Robots Corrupted . | . . . . Combat Hostiles . | . . . . Parts Fried . | . . . . Impact Corruptions . | . . . . Robots Melted . | . . . . Combat Hostiles . | . . . . Parts Melted 1 | . . 1 . Heat Transferred 531 | . . 531 . Parts Sabotaged . | . . . . Parts Stolen . | . . . . Parts Stripped . | . . . . Power Chain Reactions 1 | . . 1 . Missiles Intercepted . | . . . . Alert | -11 -10 -9 -9 ------- Run | Jun Mat Mat Min Peak Influence 409 | . 147 409 145 Initial 145 | . . 3 145 Average 135 | . 48 231 144 Maximum Alert Level 2 | . . 2 . Low Security (%) 69 | 100 100 28 100 Level 1 30 | . . 70 . Level 2 . | . . 1 . Level 3 . | . . . . Level 4 . | . . . . Level 5 . | . . . . High Security . | . . . . Max Security . | . . . . Squads Dispatched 3 | . . 3 . Investigation 1 | . . 1 . Extermination . | . . . . Reinforcement 2 | . . 2 . Assault . | . . . . Garrison . | . . . . Intercept . | . . . . Searches Triggered . | . . . . Construction Impeded . | . . . . Haulers Reinforced . | . . . . Active Scanning Responses . | . . . . Cargo Convoy Interrupts . | . . . . Stealth | -11 -10 -9 -9 --------- Run | Jun Mat Mat Min Distress Signals . | . . . . Communications Jammed . | . . . . Distress Signals . | . . . . Times Spotted 39 | . 6 31 2 Peak Tracking Total 13 | . 3 13 2 Tactical Retreats 1 | . . 1 . Traps | -11 -10 -9 -9 ------- Run | Jun Mat Mat Min Traps Triggered 1 | . . 1 . Indirectly . | . . . . Trap Hack Attempts . | . . . . Triggered . | . . . . Disarmed . | . . . . Reprogrammed . | . . . . Reused . | . . . . Traps Extracted . | . . . . Installed . | . . . . Triggered . | . . . . Machines | -11 -10 -9 -9 ---------- Run | Jun Mat Mat Min Machines Disabled . | . . . . Max in Single Turn . | . . . . Machines Repaired . | . . . . Machines Sabotaged . | . . . . Overloaded Fab Kills . | . . . . Hacking | -11 -10 -9 -9 --------- Run | Jun Mat Mat Min Machines Accessed 5 | . 4 1 . Terminals 4 | . 4 . . Fabricators . | . . . . Repair Stations . | . . . . Recycling Units . | . . . . Scanalyzers 1 | . . 1 . Garrison Access . | . . . . Total Hacks 13 | . 11 2 . Successful 7 | . 5 2 . Failed 5 | . 5 . . Catastrophic 1 | . 1 . . Database Lockouts 1 | . 1 . . Manual 5 | . 5 . . Terminals 11 | . 11 . . Fabricators . | . . . . Repair Stations . | . . . . Recycling Units . | . . . . Scanalyzers 2 | . . 2 . Garrison Access . | . . . . Terminal Hacks 5 | . 5 . . Prototype ID Bank 1 | . 1 . . Emergency Access Points 1 | . 1 . . Alert Level 1 | . 1 . . Unreport Threat 1 | . 1 . . Locate Traps 1 | . 1 . . Fabricator Hacks . | . . . . Repair Station Hacks . | . . . . Recycling Unit Hacks . | . . . . Scanalyzer 2 | . . 2 . Insert Component 1 | . . 1 . Analyze 1 | . . 1 . Garrison Access Hacks . | . . . . Unauthorized Hacks . | . . . . Terminals . | . . . . Fabricators . | . . . . Repair Stations . | . . . . Recycling Units . | . . . . Scanalyzers . | . . . . Garrison Access . | . . . . Data Cores Recovered 1 | . 1 . . Used . | . . . . Hacking Detections 5 | . 4 1 . Full Trace Events . | . . . . Feedback Events . | . . . . Feedback Blocked . | . . . . Robot Schematics Acquired . | . . . . Robots Built . | . . . . Authchips . | . . . . Time . | . . . . Total Robot Build Rating . | . . . . Part Schematics Acquired 1 | . . 1 . Parts Built . | . . . . Authchips . | . . . . Time . | . . . . Total Part Build Rating . | . . . . Parts Repaired . | . . . . Time . | . . . . Parts Recycled . | . . . . Recycled Matter . | . . . . Retrieved Matter . | . . . . Retrieved Components . | . . . . Parts Scanalyzed 1 | . . 1 . Part Schematics Acquired 1 | . . 1 . Parts Damaged . | . . . . Bothacking | -11 -10 -9 -9 ------------ Run | Jun Mat Mat Min Used RIF Installer . | . . . . Robots Hacked . | . . . . Non-combat . | . . . . Combat . | . . . . Robot Hacks Applied . | . . . . Relay Couplers Released . | . . . . Fabnet Peak Effective % . | . . . . Robots Rewired . | . . . . Allies Hacked . | . . . . Hacks Repelled . | . . . . Allies | -11 -10 -9 -9 -------- Run | Jun Mat Mat Min Total Allies . | . . . . Largest Group . | . . . . Highest-Rated Group . | . . . . Highest-Rated Ally . | . . . . Total Orders . | . . . . Ally Attacks . | . . . . Total Damage . | . . . . Kills . | . . . . Allies Corrupted . | . . . . Allies Melted . | . . . . Intel | -11 -10 -9 -9 ------- Run | Jun Mat Mat Min Robot Analysis Total . | . . . . Derelict Logs Recovered . | . . . . Drone Launches . | . . . . Drone Recoveries . | . . . . Exploration | -11 -10 -9 -9 ------------- Run | Jun Mat Mat Min Turns Passed 736 | 40 292 314 90 Spaces Moved 571 | 34 233 213 91 Core 2 | 2 . . . Treads . | . . . . Legs . | . . . . Wheels 569 | 32 233 213 91 Hover . | . . . . Flight . | . . . . Fastest Speed 50 | 50 85 90 95 Average Speed 99 | 89 98 103 95 Slowest Speed 120 | 100 105 120 115 Overloaded Moves . | . . . . Propulsion Burnouts . | . . . . Robots Hopped . | . . . . Cave-ins Triggered . | . . . . Exploration Rate (%) 29 | 4 45 34 33 Regions Visited 3 Branch Regions 1 Pre-discovered Areas 1 | . . . 1 Known Exits Taken . | . . . . Unknown Exits Taken 3 | 1 1 1 . Scrap Searched 1 | . . . 1 Spaces Dug . | . . . . Terrain Destroyed 5 | . . 5 . Melee . | . . . . Projectile . | . . . . AOE 5 | . . 5 . Terrain Rammed . | . . . . Walls Destroyed . | . . . . Machines Disabled . | . . . . Actions | -11 -10 -9 -9 --------- Run | Jun Mat Mat Min Total 663 | 40 270 259 94 Wait 19 | . 9 10 . Move 568 | 33 232 212 91 Hop . | . . . . Pick Up 12 | 1 7 3 1 Fast Attach 8 | 6 1 . 1 Attach 6 | . . 5 1 Detach . | . . . . Swap 6 | . 4 2 . Drop 6 | . 4 2 . Fire 38 | . 13 25 . Melee . | . . . . Ram . | . . . . Kick . | . . . . Crush . | . . . . Escape Stasis . | . . . . Rewire . | . . . . Trap . | . . . . Miscellaneous . | . . . . Route ------- -11/Junkyard -10/Materials (discovered 2 exits: *Mat / [*Min]) -9/Materials -9/Mines (discovered 1 exit: [*Mat]) History --------- Turn | Location | Event 18 | -11/Junkyard | Discovered new exit (range 16) 41 | -11/Junkyard | Entered Materials 158 | -10/Materials | Discovered new exit (range 16) 299 | -10/Materials | Discovered new exit (range 9) 304 | -10/Materials | Central database locked down 313 | -10/Materials | Build established: Mutant 333 | -10/Materials | Entered another Materials area 333 | -9/Materials | Evolved 2 slots: Utility x2 443 | -9/Materials | Destroyed 7 combat bots 634 | -9/Materials | Core integrity fell below 50% 637 | -9/Materials | Discovered new exit (range 13) 646 | -9/Materials | Core integrity fell below 20% 647 | -9/Materials | Entered Mines 648 | -9/Mines | Learned location of Storage (-8) 670 | -9/Mines | Lost 8 parts (1p2n2u3w) 690 | -9/Mines | Received a Rocket Launcher from a helpful Derelict 724 | -9/Mines | Assembled infested the area 736 | -9/Mines | Discovered new exit (range 7) 737 | -9/Mines | Destroyed by D-53 Grenadier with Mini Grenade Launcher Last Messages --------------- 00693_ Acquired Rocket Launcher. 00704_ K-01 Serf collects debris. 00724_ ALERT: Infestation in the mines, dispatching Demolisher response squad. 00728_ Searching scrap... 00728_ Found VTOL Module. 00728_ Found 22 Matter. 00728_ Found Shield Generator. 00728_ Found Imp. Targeting Computer. 00728_ Found 26 Matter. 00729_ Acquired 20 matter. 00730_ Acquired Imp. Targeting Computer. 00732_ C-30 ARC bursts open, deploying its payload. 00732_ D-53 Grenadier unfolds itself. 00732_ Acquired 10 matter. 00734_ K-01 Serf collects debris. 00736_ EXIT=FOUND 00736_ Plasma Injector explodes. 00736_ Arm. Wheel destroyed. 00736_ Plasma Injector explodes. Map ----- +----------------------------------------------------+ | | | | | | | | | | | | | | | | | | | | | ?????????????????????????????????????????????????? | | ?????????????????????????????????????????????????? | | ?????????????????????????????????????????????????? | | ????????????????????????????????????? ???????????? | | ???????????????##########?????????## ???????????? | | ???????????????# ????????# ??????????? | | ???????????????# #??##??# #??????????? | | ??????????????## ;## ?# #???????????? | | ??????????????#; ;# ?? #???????????? | | ??????????????## ; ? ????????????? | | ??????????????#; ? ?????????????? | | ??????????????#; """ ?????????????? | | ???????????????# # """ ?????????????? | | ???????????????# """??????????????? | | ???????????????# < #???????????????????? | | ???????????????# @ #???????????????????? | | ???????????????#####;;;;;ddk #???????????????????? | | ???????????????????######;% #### #??????????????? | | ????????????????????????## k% %!= #??????????????? | | ?????????????????????????#k #######??????????????? | | ?????????????????????????# #????????????????????? | | ????????????????????????## #????????????????????? | | ????????????????????????# #????????????????????? | | ????????????????????????# #######??????????????? | | ????????????????????????## ## ####???????????? | | ?????????????????????????## ##??????????? | | ??????????????????????????#### #??????????? | | ?????????????????????????????## #??????????? | | ??????????????????????????????# ## ##?####????? | | ??????????????????????????????# ### ### ##???? | | ??????????????????????????????# #?# #???? | | ??????????????????????????????# #?## ##??? | | ??????????????????????????????# #??## ###? | | ??????????????????????????????# #???### ## | | ??????????????????????????????# #?????## # | | ??????????????????????????????? ???????# | | ??????????????????????????????? ???????# ### | | ???????????????????????????????#??????# ##?## # | | ?????????????????????????????????????# ##???## # | | ?????????????????????????????????????# ##?????# # | +----------------------------------------------------+ Best States ------------- Heat Dissipation 42 Energy Generation 12 Energy Capacity 265 Matter Stores 300 Matter Capacity 300 Sight Range 16 Terrain Scan Density 10 Evasion (%) 42 Offensive Hacking 10 Item Schematics ----------------- Imp. Heat Sink | -9/Materials | Scanalyzed Robot Schematics ------------------ None Fabricated ------------ Nothing Alien Tech Used ----------------- None Achievements -------------- None Challenges ------------ None Game ------ Seed BehemothHelicalRailgun Manual? 0 Play Time 00:14:02 Cumulative 216.7 hours Start 2023.12.14 @ 20:39:03 End 2023.12.14 @ 20:54:28 Sessions 1 Manual Loads 0 Difficulty Rogue Special Mode None Game No. 112 Rogue 112 Adventurer 0 Explorer 0 Win Type - Total 7 Types 6/0/1/0/0/0/0/0/0 Lore% 73 Gallery% 77 Achievement% 61 Wizard Run 0 Options --------- ASCII 0 Keyboard 1 Movement Numpad Keybinds 0 Fullscreen 2 Font 18/SmallcapsGlow Map View 76x50 Tactical HUD 1 Map Filters NONE Filters NONE Steam 1 RUN: d1a2bd18-7b29-48b8-93e2-bd7afc46255b